Cogmind - Beta 15 @@@ ROGUE MODE // 2025.09.30 @ 18:10:38 Player: Figgis Result: Destroyed by S-10 Pest with Light Assault Rifle Performance ------------- Evolutions (1) 500 Regions Visited (3) 600 Robots Destroyed (52) 260 Value Destroyed (1304) 1304 Prototype IDs (2) 40 Alien Tech Used (0) 0 Bonus (0) 0 TOTAL SCORE: 2704 Bonus ------- None Cogmind --------- Core Integrity 0/400 Matter 269/300 Energy 265/265 System Corruption 0% Temperature Cool (4) Movement Walking (190) Ox1 Location -9/Materials Parts ------- > --- POWER (1) -------- Improved Ion Engine > --- PROPULSION (2) --- Aluminum Leg Aluminum Leg > --- UTILITY (4) ------ Large Storage Unit Sensor Array Signal Interpreter Light Armor Plating > --- WEAPON (2) ------- Light Assault Rifle Autogun > --- INVENTORY (15) --- Improved Ion Engine Aluminum Leg Aluminum Leg Aluminum Leg Aluminum Leg Huge Storage Unit High-capacity Matter Pod (200) Light Armor Plating Shield Generator Bomb Drone Bay (16/16) Advanced Beam Cannon Advanced Beam Cannon Heavy Assault Rifle Rocket Launcher Peak State ------------ > --- POWER ------------ Improved Ion Engine > --- PROPULSION ------- Aluminum Leg Aluminum Leg > --- UTILITY ---------- Large Storage Unit Bomb Drone Bay > --- WEAPON ----------- Light Assault Rifle > --- INVENTORY -------- Aluminum Leg Aluminum Leg Aluminum Leg Huge Storage Unit High-capacity Matter Pod Sensor Array Signal Interpreter Light Armor Plating Shield Generator [Rating: 21] Favorites ----------- Power Light Ion Engine Engine Light Ion Engine Propulsion Aluminum Leg Leg Aluminum Leg Utility Large Storage Unit Device Improved Terrain Scanner Storage Large Storage Unit Processor Signal Interpreter Protection Light Armor Plating Weapon Light Assault Rifle Energy Gun Heavy EM Pulse Gun Energy Cannon Advanced Beam Cannon Ballistic Gun Light Assault Rifle Special Weapon Plasma Flamer Build | -11 -10 -10 -9 ------- Run | Yrd Mat Min Mat Slots Evolved 2 | . . . 2 Power . | . . . . Propulsion . | . . . . Utility 2 | . . . 2 Weapon . | . . . . Parts Attached 32 | 8 4 4 16 Power 4 | 1 . 1 2 Engine 4 | 1 . 1 2 Core . | . . . . Reactor . | . . . . Propulsion 10 | 2 3 2 3 Treads . | . . . . Leg 10 | 2 3 2 3 Wheel . | . . . . Hover . | . . . . Flight . | . . . . Utility 9 | 2 1 1 5 Device 4 | 1 . 1 2 Storage 2 | 1 1 . . Processor 1 | . . . 1 Hackware . | . . . . Protection 2 | . . . 2 Artifact . | . . . . Weapon 9 | 3 . . 6 Energy Gun 1 | . . . 1 Energy Cannon 1 | . . . 1 Ballistic Gun 6 | 3 . . 3 Ballistic Cannon . | . . . . Launcher . | . . . . Special Weapon 1 | . . . 1 Impact Weapon . | . . . . Slashing Weapon . | . . . . Piercing Weapon . | . . . . Special Melee Weapon . | . . . . Unidentified Prototypes 2 | . . . 2 Parts Lost 11 | . 1 1 9 Power 2 | . . . 2 Propulsion 2 | . . . 2 Utility 2 | . . 1 1 Weapon 5 | . 1 . 4 Highest Loss Streak 7 | . 1 1 7 To Critical Strikes . | . . . . Average Backups 12 | 3 10 14 12 Power 1 | 1 2 1 . Propulsion 4 | . 4 5 4 Utility 4 | . 2 6 5 Weapon 1 | . . . 1 Tool/Special . | . . . . Unused Backups 13 | . 1 . 12 Power 1 | . . . 1 Propulsion 4 | . . . 4 Utility 5 | . 1 . 4 Weapon 3 | . . . 3 Tool/Special . | . . . . Average Slot Usage (%) 95 | . 99 99 88 Engine 12 | . 14 14 10 Leg 25 | . 27 28 21 Device 12 | . 14 13 10 Storage 12 | . 14 14 11 Processor 2 | . . . 6 Protection 2 | . . . 6 Ballistic Gun 24 | . 28 28 17 Special Weapon 1 | . . . 2 Peak Build Rating 21 | 9 10 12 21 Average Rating 11 | 3 9 11 13 On Entrance 7 | . 9 10 12 Naked Turns . | . . . . Heaviest Build 35 | 12 28 27 35 Greatest Support 20 | 20 20 20 20 Greatest Overweight (x) 2 | . 1 1 2 Average Overweight (x) . | . . 1 1 Largest Inventory Capacity 15 | 8 15 15 15 Average Capacity 14 | 5 13 15 15 Most Carried 15 | 5 15 15 15 Average Carried 12 | 3 10 14 13 Final Capacity 15 | 8 15 15 15 Final Carried 15 | 3 14 15 15 Class Distribution -------------------- 52% | Scavenger-Mutant 47% | Mutant Dominant Class ---------------- Mutant | -10/Materials Scavenger-Mutant | -10/Mines Scavenger-Mutant | -9/Materials Resources | -11 -10 -10 -9 ----------- Run | Yrd Mat Min Mat Matter Collected 1114 | 285 327 97 405 Remotely . | . . . . Salvage Created 1924 | 156 742 169 857 Parts 110 | 11 37 7 55 Haulers Intercepted . | . . . . Recyclers Shooed 1 | . . . 1 Parts Field Recycled . | . . . . Retrieved Matter . | . . . . Parts Self-Destructed . | . . . . Prevented . | . . . . Kills | -11 -10 -10 -9 ------- Run | Yrd Mat Min Mat Combat Hostiles Destroyed 37 | . 14 2 21 Guns 32 | . 14 2 16 Cannons 3 | . . . 3 Classes Destroyed 7 | 2 3 . 2 Worker 2 | . . . 2 Tunneler 3 | 3 . . . Recycler 6 | 1 2 1 2 Watcher 4 | . 2 . 2 Swarmer 9 | . 3 . 6 Grunt 21 | . 11 2 8 Sentry 7 | . . . 7 Best Kill Streak 6 | 3 6 3 6 Combat Bots Only 4 | . 4 2 4 Max Kills in Single Turn 2 | 1 1 1 2 Gunslinging . | . . . . Exploded . | . . . . Melee . | . . . . Uniques/NPCs Destroyed . | . . . . Combat | -11 -10 -10 -9 -------- Run | Yrd Mat Min Mat Hostile Shots Fired 225 | . 62 17 146 Missed 58 | . 12 3 43 Hits 167 | . 50 14 103 Projectile 167 | . 50 14 103 Critical Strikes 1 | . . . 1 Damage Taken 1834 | . 509 170 1155 Core 519 | . 88 24 407 Absorbed by Shields . | . . . . Regen/Repaired (Parts) 67 | . 67 . . Core Remaining (%) 77 | 100 . 55 . Volleys Fired 163 | 11 48 13 91 Largest 2 | 2 2 2 2 Hottest 120 | 40 40 40 120 Shots Fired 305 | 22 95 26 162 Gun 284 | 22 95 26 141 Cannon . | . . . . Launcher . | . . . . Special 21 | . . . 21 Kinetic 277 | 22 95 26 134 Thermal 21 | . . . 21 Explosive . | . . . . Electromagnetic 7 | . . . 7 Robot Hit Streak 26 | 6 26 5 21 Robot Miss Streak 5 | 2 5 1 5 Penetration Max . | . . . . Secondary Targets 3 | . 1 . 2 Max Gunslinging Chain 1 | . 1 . 1 Shots Hit Robots 207 | 14 63 14 116 Core Hits 88 | 5 31 8 44 Critical Kills 1 | . . . 1 Critical Parts Destroyed 3 | . 1 1 1 Critical Strikes 8 | . 1 1 6 Burn 4 | . . . 4 Destroy 4 | . 1 1 2 Melee Attacks . | . . . . Impact . | . . . . Slashing . | . . . . Piercing . | . . . . Sneak Attacks . | . . . . Combat Hostiles . | . . . . Follow-up Attacks . | . . . . Damage Inflicted 2499 | 142 775 154 1428 Guns 2196 | 142 767 154 1133 Cannons . | . . . . Explosions 55 | . . . 55 Melee . | . . . . Ramming 8 | . 8 . . Kinetic 2096 | 142 767 154 1033 Thermal 295 | . . . 295 Explosive . | . . . . Electromagnetic 100 | . . . 100 Impact . | . . . . Slashing . | . . . . Piercing . | . . . . Highest Corruption . | . . . . Average Corruption . | . . . . Corruption Purged . | . . . . Corruption Blocked . | . . . . Overload Shots . | . . . . Overflow Damage 26 | . . . 26 Projectiles . | . . . . Explosions 26 | . . . 26 Melee . | . . . . Knockbacks . | . . . . Impact . | . . . . Kinetic . | . . . . Secondary . | . . . . Self-Inflicted Damage 39 | . . . 39 Shots 1 | . . . 1 Rammed . | . . . . Targets Rammed 1 | . 1 . . Kicked 1 | . 1 . . Crushed . | . . . . Highest Temperature 29 | . 18 15 29 Average Temperature 7 | . 8 8 7 Received Heat Transfer 555 | . 198 96 261 Siege Activations . | . . . . Martial Activations . | . . . . Shielding Activations . | . . . . Robots Disrupted 3 | . . . 3 Combat Hostiles 3 | . . . 3 Robots Corrupted . | . . . . Combat Hostiles . | . . . . Parts Fried . | . . . . Impact Corruptions . | . . . . Robots Melted 2 | . . . 2 Combat Hostiles 2 | . . . 2 Parts Melted 3 | . . . 3 Heat Transferred 2180 | . . . 2180 Parts Sabotaged . | . . . . Parts Stolen . | . . . . Parts Stripped . | . . . . Power Chain Reactions 1 | . . . 1 Alert | -11 -10 -10 -9 ------- Run | Yrd Mat Min Mat Maximum Alert Level 1 | . . . 1 Low Security (%) 98 | 100 100 100 96 Level 1 1 | . . . 3 Level 2 . | . . . . Level 3 . | . . . . Level 4 . | . . . . Level 5 . | . . . . High Security . | . . . . Max Security . | . . . . Peak Influence 227 | 10 175 50 227 Initial 21 | . . 21 . Average 54 | 2 98 3 74 Influence Increases 1298 | 20 496 55 727 Destroy 0b10 Robot/C 740 | . 280 40 420 Destroy 0b10 Robot/NC 75 | 20 20 5 30 Destroy Leader 178 | . 54 10 114 Successful Hack 60 | . 36 . 24 Disable Machine 15 | . 15 . . Destroy Structure 5 | . 1 . 4 Lose Combat Pursuer 225 | . 90 . 135 Influence Decreases 1237 | 20 440 111 666 Entered New Map 35 | . . 35 . Time Decay 972 | 20 430 76 446 Lost Part 80 | . 10 . 70 Purge Threat 150 | . . . 150 Squads Dispatched 5 | . 1 . 4 Investigation 3 | . 1 . 2 Extermination . | . . . . Reinforcement 2 | . . . 2 Assault . | . . . . Garrison . | . . . . Intercept . | . . . . Searches Triggered . | . . . . Construction Impeded . | . . . . Haulers Reinforced . | . . . . Active Scanning Responses . | . . . . Cargo Convoy Interrupts . | . . . . Stealth | -11 -10 -10 -9 --------- Run | Yrd Mat Min Mat Distress Signals 9 | . 5 . 4 Communications Jammed . | . . . . Distress Signals . | . . . . Times Spotted 61 | . 20 2 39 Peak Tracking Total 8 | . 6 2 8 Tactical Retreats 8 | . 3 . 5 Traps | -11 -10 -10 -9 ------- Run | Yrd Mat Min Mat Traps Triggered 2 | . 1 . 1 Indirectly . | . . . . Trap Hack Attempts . | . . . . Triggered . | . . . . Disarmed . | . . . . Reprogrammed . | . . . . Reused . | . . . . Traps Extracted . | . . . . Installed . | . . . . Triggered . | . . . . Machines | -11 -10 -10 -9 ---------- Run | Yrd Mat Min Mat Machines Disabled 1 | . 1 . . Max in Single Turn 1 | . 1 . . Machines Repaired . | . . . . Machines Dismantled . | . . . . Machines Sabotaged . | . . . . Overloaded Fab Kills . | . . . . Hacking | -11 -10 -10 -9 --------- Run | Yrd Mat Min Mat Machines Accessed 16 | . 8 1 7 Terminals 14 | . 7 . 7 Fabricators . | . . . . Repair Stations 1 | . 1 . . Recycling Units . | . . . . Scanalyzers . | . . . . Garrison Access . | . . . . Total Hacks 46 | . 25 1 20 Successful 23 | . 13 1 9 Failed 23 | . 12 . 11 Catastrophic 8 | . 4 . 4 Database Lockouts . | . . . . Manual 20 | . 10 . 10 Terminals 42 | . 22 . 20 Fabricators . | . . . . Repair Stations 3 | . 3 . . Recycling Units . | . . . . Scanalyzers . | . . . . Garrison Access . | . . . . Terminal Hacks 21 | . 11 1 9 Record 4 | . 3 . 1 Part Schematic 2 | . 1 . 1 Robot Analysis 9 | . 4 . 5 Open Door 1 | . . 1 . Unreport Threat 1 | . . . 1 Locate Traps 3 | . 2 . 1 Zone Layout 1 | . 1 . . Fabricator Hacks . | . . . . Repair Station Hacks 2 | . 2 . . Scan Component 1 | . 1 . . Repair 1 | . 1 . . Recycling Unit Hacks . | . . . . Scanalyzer . | . . . . Garrison Access Hacks . | . . . . Unauthorized Hacks . | . . . . Terminals . | . . . . Fabricators . | . . . . Repair Stations . | . . . . Recycling Units . | . . . . Scanalyzers . | . . . . Garrison Access . | . . . . Data Cores Recovered . | . . . . Used . | . . . . Hacking Detections 15 | . 8 . 7 Full Trace Events 1 | . . . 1 Feedback Events . | . . . . Feedback Blocked . | . . . . Robot Schematics Acquired . | . . . . Robots Built . | . . . . Authchips . | . . . . Time . | . . . . Total Robot Build Rating . | . . . . Part Schematics Acquired 2 | . 1 . 1 Parts Built . | . . . . Authchips . | . . . . Time . | . . . . Total Part Build Rating . | . . . . Parts Repaired 1 | . 1 . . Time 26 | . 26 . . Parts Recycled . | . . . . Recycled Matter . | . . . . Retrieved Matter . | . . . . Retrieved Components . | . . . . Parts Scanalyzed . | . . . . Part Schematics Acquired . | . . . . Parts Damaged . | . . . . Bothacking | -11 -10 -10 -9 ------------ Run | Yrd Mat Min Mat Used RIF Installer . | . . . . Robots Hacked . | . . . . Non-combat . | . . . . Combat . | . . . . Robot Hacks Applied . | . . . . Relay Couplers Released . | . . . . Fabnet Peak Effective % . | . . . . Robots Rewired . | . . . . Allies Hacked . | . . . . Hacks Repelled . | . . . . Allies | -11 -10 -10 -9 -------- Run | Yrd Mat Min Mat Total Allies 1 | . . 1 . Largest Group 1 | . . 1 . Highest-Rated Group 31 | . . 31 . Highest-Rated Ally 31 | . . 31 . Total Orders . | . . . . Ally Attacks . | . . . . Total Damage . | . . . . Kills . | . . . . Allies Corrupted . | . . . . Allies Melted . | . . . . Intel | -11 -10 -10 -9 ------- Run | Yrd Mat Min Mat Active Infowar (turns) 2600 | 4 1168 579 849 Sensors 849 | . . . 849 Terrain 1751 | 4 1168 579 . Robot Analysis Total 8 | . 4 . 4 Derelict Logs Recovered 2 | . . 2 . Drone Launches . | . . . . Drone Recoveries . | . . . . Exploration | -11 -10 -10 -9 ------------- Run | Yrd Mat Min Mat Turns Passed 4018 | 85 1168 1395 1370 Spaces Moved 1816 | 47 527 710 532 Core 43 | 43 . . . Treads . | . . . . Legs 1773 | 4 527 710 532 Wheels . | . . . . Hover . | . . . . Flight . | . . . . Fastest Speed 50 | 50 120 190 190 Average Speed 181 | 55 171 190 190 Slowest Speed 260 | 120 190 190 260 Overloaded Moves . | . . . . Propulsion Burnouts . | . . . . Robots Hopped . | . . . . Potential Cave-ins . | . . . . Cave-ins Triggered . | . . . . Exploration Rate (%) 59 | 4 81 99 53 Regions Visited 3 Branch Regions 1 Pre-discovered Areas 2 | . . 2 . Known Exits Taken . | . . . . Unknown Exits Taken 3 | 1 1 1 . Scrap Searched 1 | . . 1 . Spaces Dug . | . . . . Terrain Destroyed 3 | . . . 3 Melee . | . . . . Projectile . | . . . . AOE 3 | . . . 3 Terrain Rammed . | . . . . Walls Destroyed . | . . . . Machines Disabled . | . . . . Actions | -11 -10 -10 -9 --------- Run | Yrd Mat Min Mat Total 2261 | 85 702 733 741 Wait 195 | 12 97 1 85 Move 1813 | 46 526 709 532 Hop . | . . . . Pick Up 40 | 7 18 3 12 Fast Attach 4 | 3 . 1 . Attach 19 | 5 2 . 12 Detach 2 | 1 . . 1 Swap 13 | . 5 3 5 Drop 11 | . 5 3 3 Fire 163 | 11 48 13 91 Melee . | . . . . Ram . | . . . . Kick 1 | . 1 . . Crush . | . . . . Escape Stasis . | . . . . Rewire . | . . . . Trap . | . . . . Miscellaneous . | . . . . Route ------- -11/Scrapyard -10/Materials (discovered 4 exits: *Mat x2 / *Min / [Sub]) -10/Mines (discovered 2 exits: *Mat x2) -9/Materials (discovered 3 exits: [*Mat] / [*Min x2]) History --------- Turn | Location | Event 13 | -11/Scrapyard | Discovered new exit (range 15) 86 | -11/Scrapyard | Entered Materials 312 | -10/Materials | Build established: Mutant 327 | -10/Materials | Discovered new exit (range 12) 436 | -10/Materials | Discovered new exit (range 3) 528 | -10/Materials | Repaired Aluminum Leg 630 | -10/Materials | Discovered new exit (range 10) 910 | -10/Materials | Discovered new exit (range 15) 1254 | -10/Materials | Entered Mines 1308 | -10/Mines | A weapon hastily lodged in a ceiling crevice suddenly fell to the ground 1388 | -10/Mines | Learned location of Zion (-6) 1420 | -10/Mines | Found the Drone Emporium 1432 | -10/Mines | Found Prototype Device 1610 | -10/Mines | Deemed a non-threat by the Exiles lab entrance 1719 | -10/Mines | Build established: Scavenger-Mutant 1885 | -10/Mines | Discovered new exit (range 12) 1961 | -10/Mines | Learned location of Storage (-8) 1972 | -10/Mines | Discovered new exit (range 4) 2217 | -10/Mines | Received a Mining Laser from a helpful Derelict 2649 | -10/Mines | Entered Materials 2649 | -9/Materials | Evolved 2 slots: Utility x2 3027 | -9/Materials | Build established: Mutant 3065 | -9/Materials | Discovered new exit (range 11) 3128 | -9/Materials | Core integrity fell below 50% 3155 | -9/Materials | Lost 7 parts (1p2n1u3w) 3159 | -9/Materials | Identified Bomb Drone Bay 3216 | -9/Materials | Discovered new exit (range 13) 3453 | -9/Materials | Build established: Scavenger-Mutant 3566 | -9/Materials | Core integrity fell below 20% 3577 | -9/Materials | Discovered new exit (range 13) 4019 | -9/Materials | Destroyed by S-10 Pest with Light Assault Rifle Last Messages --------------- 03734_ Critical hit (Burn: +37). 03735_ Y-45 Defender destroyed. 03745_ Dropped Lgt. Assault Rifle. 03747_ Acquired 13 matter. 03748_ Acquired 15 matter. 03752_ Acquired 51 matter. 03775_ Connecting with Terminal... >>Alert(Purge) Purged threat record, alert level lowered. 03775_ ALERT: Suspicious activity at Terminal M011. Dispatching Investigation squad. 03872_ Connecting with Terminal... 03898_ G-34 Mercenary suffers critical hit (Destroy). 03898_ Destroyed Aluminum Leg. 03911_ G-34 Mercenary destroyed. 03915_ Acquired 36 matter. 03959_ S-10 Pest destroyed. 03963_ Acquired 12 matter. 03968_ R-06 Scavenger collects Flight Unit. 04011_ Connecting with Terminal... Map ----- +----------------------------------------------------+ | ??????????????# ????????????????????????????? | | ###########???# """ #????????????????????????? | | #???# """"" #????????????????????????? | | ######### #???# """"" #????????????????????????? | | ??####### #???# """"" #????????????????????????? | | ??# # #???# """ #????????????????????????? | | ??# # #???# [ #????????????????????????? | | ??# # #########+#####????????????????????????? | | ??# """ + ###########?????????????????? | | ### """ # ##### # #?????????????????? | | " # """ # #???# # #?????????????????? | | " # # #???# /* #?????????????????? | | " #######+## #???# # #?????????????????? | | # ! [## #???# ########x##?????????????????? | | # ## #???# ######## ###????????????????? | | # ##+##### ???????????????? | | ### """ # """ # ???????????????? | | # """ # """ # ???????????????? | | # """ # """ + ############????????????????? | | + # # #???????????????????????????? | | # "" # # #??#######????? #? ???????? | | # T" #! # #### #?? #? ???????? | | ### "" #####+## # != ## ???????? | | #?# #???# T + == ## ###????? | | ####### ###???# # = # ?????? | | !##############+#####@s #??????# ""????? | | #### # #??? ??##a ##??????# |?????? | | ???#=+ ! #?# """ #?# a#???????# < "?##### | | ???# # #?# """ |#?# #???????# |?# | | ##?# ########### """ #?# #???????# ??# | | #[# # #?# #???????? ??# | | "" #=# = # #?# #????????# #??# | | "" "*# #########?# #????????# #??# =*! | | "" # # #?????????? #????????# #??#!* * | | # # """ "" #?????x???? #????????# #??#= [ | | ?# # """ T" #?????????? #???????## ##?#=!%% | | #??# # """ "" #?????????? #???????# ####### | | ####*# #?????????? #???????# * % | | ##%#######+###?????????? #???????# | | ##= ###+####### ######### | | # ^ ^ % ####### | | + ^ ###### ######??# | | # ^ #????# #???????# "" | | ## ^ ######### #????# #???????# "" | | ## ########?????? ?????# #???????# "" | | ## ^ =# #????????????# #???????# "" | | #T # """#????????????# #???????# "" | | #### """ !+%= """#????????????# % #???????# | | =# """ [#! """#????????????# #???????# | | # ^"""^ # #????????????# #?????#####+ | +----------------------------------------------------+ Best States ------------- Heat Dissipation 42 Energy Generation 12 Energy Capacity 265 Matter Stores 300 Matter Capacity 300 Sight Range 16 Robot Scan Range 14 Terrain Scan Range 16 Terrain Scan Density 10 Armor Coverage 150 Evasion (%) 55 Item Schematics ----------------- Huge Storage Unit | -10/Materials | Hacked Arm. Wheel | -9/Materials | Hacked Robot Schematics ------------------ None Fabricated ------------ Nothing Repaired ---------- Aluminum Leg | 25% | -10/Materials Alien Tech Used ----------------- None Achievements -------------- None Challenges ------------ None Game ------ Seed PulseChargeBattery Manual? 0 Play Time 00:23:21 Cumulative 194.4 hours Start 2025.09.30 @ 17:35:17 End 2025.09.30 @ 18:10:38 Sessions 1 Manual Loads 0 Difficulty Rogue Special Mode None Game No. 310 Rogue 307 Adventurer 3 Explorer 0 Win Type - Total 1 Types 1/0/0/0/0/0/0/0/0/0 Lore% 65 Gallery% 60 Achievement% 47 Wizard Run 0 Options --------- Layout 0 ASCII 0 Keyboard 0 Movement Mouse Keybinds 0 Fullscreen 2 Font 18/SmallcapsGlow Map View 76x50 Zoom Use 0% Tactical HUD 1 Map Filters NONE Filters NONE Steam 1 RUN: d84b6e80-20a1-4032-9311-03cf831a0529